fUST/lending_fUST_20250502
["ID","MTS","AMOUNT","RATE_DAILY","PERIOD"]
[359618216,1746185451598,-1159.3,0.0002,2]
[359618218,1746185451607,-400.0,0.0002,2]
[359618220,1746185451617,-1067.69,0.0002,2]
[359618222,1746185451627,-3446.47,0.0002,2]
[359618224,1746185451637,-400.0,0.0002,2]
[359618226,1746185451647,-652.79,0.0002,2]
[359618228,1746185451657,-502.38199519,0.0002,2]
[359618230,1746185451666,-400.0,0.0002,2]
[359618233,1746185451676,-400.0,0.0002,2]
[359618235,1746185451686,-400.0,0.0002,2]
[359618237,1746185451695,-673.12,0.0002,2]
[359618239,1746185451705,-400.0,0.0002,2]
[359618241,1746185451714,-400.0,0.0002,2]
[359618243,1746185451724,-400.0,0.0002,2]
[359618245,1746185451734,-400.0,0.0002,2]
[359618247,1746185451744,-400.0,0.0002,2]
[359618249,1746185451753,-400.0,0.0002,2]
[359618251,1746185451763,-400.0,0.0002,2]
[359618253,1746185451774,-400.0,0.0002,2]
[359618255,1746185451784,-400.0,0.0002,2]
[359618257,1746185451794,-751.31,0.0002,2]
[359618259,1746185451804,-400.0,0.0002,2]
[359618261,1746185451813,-723.63,0.0002,2]
[359618263,1746185451823,-407.03934653,0.0002,2]
[359618265,1746185451833,-2313.15,0.0002,2]
[359618267,1746185451842,-400.0,0.0002,2]
[359618269,1746185451851,-400.0,0.0002,2]
[359618271,1746185451861,-422.52,0.0002,2]
[359618273,1746185451870,-816.29,0.0002,2]
[359618274,1746185451880,-400.0,0.0002,2]
[359618275,1746185451889,-514.13,0.0002,2]
[359618276,1746185451899,-400.0,0.0002,2]
[359618277,1746185451909,-400.0,0.0002,2]
[359618278,1746185451920,-1458.46,0.0002,2]
[359618279,1746185451930,-400.0,0.0002,2]
[359618280,1746185451940,-857.49,0.0002,2]
[359618281,1746185451950,-400.0,0.0002,2]
[359618282,1746185451959,-400.0,0.0002,2]
[359618283,1746185451969,-400.0,0.0002,2]
[359618284,1746185451978,-400.0,0.0002,2]
[359618285,1746185451988,-421.66,0.0002,2]
[359618286,1746185451998,-400.0,0.0002,2]
[359618287,1746185452009,-353.32776899,0.0002,2]
[359618288,1746185452018,-459.53,0.0002,2]
[359618289,1746185452028,-400.0,0.0002,2]
[359618290,1746185452039,-1278.92,0.0002,2]
[359618291,1746185452049,-400.0,0.0002,2]
[359618292,1746185452059,-1278.02,0.0002,2]
[359618293,1746185452070,-400.0,0.0002,2]
[359618294,1746185452080,-915.5,0.0002,2]
[359618295,1746185452090,-400.0,0.0002,2]
[359618296,1746185452100,-400.0,0.0002,2]
[359618297,1746185452111,-400.0,0.0002,2]
[359618298,1746185452121,-431.04,0.0002,2]
[359618299,1746185452131,-1355.25,0.0002,2]
[359618300,1746185452142,-796.73,0.0002,2]
[359618301,1746185452153,-447.79,0.0002,2]
[359618302,1746185452163,-623.88,0.0002,2]
[359618303,1746185452172,-1001.69,0.0002,2]
[359618304,1746185452182,-400.0,0.0002,2]
[359618305,1746185452193,-400.0,0.0002,2]
[359618306,1746185452202,-399.86374035,0.0002,2]
[359618307,1746185452212,-886.17,0.0002,2]
[359618308,1746185452222,-400.0,0.0002,2]
[359618309,1746185452232,-400.0,0.0002,2]
[359618310,1746185452242,-400.0,0.0002,2]
[359618311,1746185452450,-400.0,0.0002,2]
[359618312,1746185452461,-400.0,0.0002,2]
[359618313,1746185452471,-400.0,0.0002,2]
[359618314,1746185452485,-892.13,0.0002,2]
[359618315,1746185452495,-400.0,0.0002,2]
[359618316,1746185452505,-400.0,0.0002,2]
[359618317,1746185452514,-400.0,0.0002,2]
[359618318,1746185452523,-408.14,0.0002,2]
[359618319,1746185452533,-400.0,0.0002,2]
[359618320,1746185452542,-687.84,0.0002,2]
[359618321,1746185452552,-400.0,0.0002,2]
[359618322,1746185452565,-400.0,0.0002,2]
[359618323,1746185452575,-807.78,0.0002,2]
[359618324,1746185452585,-400.0,0.0002,2]
[359618325,1746185452595,-400.0,0.0002,2]
[359618326,1746185452604,-400.0,0.0002,2]
[359618327,1746185452614,-581.24,0.0002,2]
[359618328,1746185452623,-623.0,0.0002,2]
[359618329,1746185452633,-196.08000274,0.0002,2]
[359618330,1746185452643,-400.0,0.0002,2]
[359618331,1746185452653,-400.0,0.0002,2]
[359618332,1746185452663,-533.14,0.0002,2]
[359618333,1746185452673,-400.0,0.0002,2]
[359618334,1746185452682,-400.0,0.0002,2]
[359618335,1746185452692,-400.0,0.0002,2]
[359618336,1746185452702,-362.38161275,0.0002,2]
[359618337,1746185452711,-707.11,0.0002,2]
[359618338,1746185452722,-511.12,0.0002,2]
[359618339,1746185452733,-2665.12,0.0002,2]
[359618340,1746185452743,-400.0,0.0002,2]
[359618341,1746185452752,-482.296288,0.0002,2]
[359618342,1746185452762,-433.68,0.0002,2]
[359618343,1746185452771,-400.0,0.0002,2]
[359618344,1746185452781,-400.0,0.0002,2]
[359618345,1746185452791,-1489.41,0.0002,2]
[359618346,1746185452801,-576.36,0.0002,2]
[359618347,1746185452812,-400.0,0.0002,2]
[359618348,1746185452822,-659.2,0.0002,2]
[359618349,1746185452832,-400.0,0.0002,2]
[359618350,1746185452842,-400.0,0.0002,2]
[359618351,1746185452851,-400.0,0.0002,2]
[359618352,1746185452862,-644.95,0.0002,2]
[359618353,1746185452872,-400.0,0.0002,2]
[359618354,1746185452882,-400.0,0.0002,2]
[359618355,1746185452892,-400.0,0.0002,2]
[359618356,1746185452902,-626.15,0.0002,2]
[359618357,1746185452912,-400.0,0.0002,2]
[359618358,1746185452922,-414.29,0.0002,2]
[359618359,1746185452932,-735.11,0.0002,2]
[359618360,1746185452943,-400.0,0.0002,2]
[359618361,1746185452954,-400.0,0.0002,2]
[359618362,1746185452964,-400.0,0.0002,2]
[359618363,1746185452974,-263.57382774,0.0002,2]
[359618364,1746185452984,-400.0,0.0002,2]
[359618365,1746185452994,-688.83,0.0002,2]
[359618366,1746185453005,-400.0,0.0002,2]
[359618367,1746185453015,-400.0,0.0002,2]
[359618368,1746185453025,-500.0,0.0002,2]
[359618369,1746185453036,-491.41,0.0002,2]
[359618370,1746185453046,-400.0,0.0002,2]
[359618371,1746185453056,-400.0,0.0002,2]
[359618372,1746185453066,-400.0,0.0002,2]
[359618373,1746185453076,-400.0,0.0002,2]
[359618375,1746185453086,-1953.1,0.0002,2]
[359618377,1746185453096,-722.49,0.0002,2]
[359618379,1746185453106,-801.02,0.0002,2]
[359618381,1746185453116,-1894.3,0.0002,2]
[359618382,1746185453126,-400.0,0.0002,2]
[359618384,1746185453136,-769.83,0.0002,2]
[359618385,1746185453146,-736.64,0.0002,2]
[359618387,1746185453156,-501.73,0.0002,2]
[359618388,1746185453165,-1879.43,0.0002,2]
[359618389,1746185453175,-460.12,0.0002,2]
[359618390,1746185453185,-592.34,0.0002,2]
[359618391,1746185453195,-400.0,0.0002,2]
[359618392,1746185453205,-631.14,0.0002,2]
[359618393,1746185453214,-400.0,0.0002,2]
[359618394,1746185453224,-1112.04,0.0002,2]
[359618395,1746185453234,-400.0,0.0002,2]
[359618396,1746185453244,-3248.52,0.0002,2]
[359618397,1746185453253,-400.0,0.0002,2]
[359618398,1746185453264,-1247.75,0.0002,2]
[359618399,1746185453274,-400.0,0.0002,2]
[359618400,1746185453284,-1902.81,0.0002,2]
[359618401,1746185453295,-7872.97,0.0002,2]
[359618402,1746185453305,-881.57,0.0002,2]
[359618403,1746185453315,-618.88,0.0002,2]
[359618404,1746185453325,-1505.02,0.0002,2]
[359618405,1746185453334,-400.0,0.0002,2]
[359618406,1746185453344,-400.0,0.0002,2]
[359618407,1746185453354,-649.86,0.0002,2]
[359618408,1746185453364,-3315.96,0.0002,2]
[359618409,1746185453374,-482.45,0.0002,2]
[359618410,1746185453384,-7081.54,0.0002,2]
[359618411,1746185453394,-400.0,0.0002,2]
[359618412,1746185453403,-2683.67,0.0002,2]
[359618413,1746185453412,-3011.23,0.0002,2]
[359618414,1746185453422,-458.52,0.0002,2]
[359618415,1746185453432,-400.0,0.0002,2]
[359618416,1746185453442,-3881.91,0.0002,2]
[359618417,1746185453451,-160.0,0.0002,3]
[359618418,1746185453461,-749.17,0.0002,2]
[359618419,1746185453470,-2180.2,0.0002,2]
[359618420,1746185453484,-424.63,0.0002,2]
[359618421,1746185453495,-443.79,0.0002,2]
[359618422,1746185453504,-2888.0,0.0002,2]
[359618423,1746185453515,-400.0,0.0002,2]
[359618424,1746185453525,-1347.15,0.0002,2]
[359618425,1746185453535,-727.94,0.0002,2]
[359618426,1746185453545,-473.74,0.0002,2]
[359618427,1746185453556,-426.04811213,0.0002,2]
[359618428,1746185453566,-1199.02,0.0002,2]
[359618429,1746185453577,-400.0,0.0002,2]
[359618430,1746185453587,-807.46,0.0002,2]
[359618431,1746185453597,-400.0,0.0002,2]
[359618432,1746185453607,-436.86,0.0002,2]
[359618433,1746185453617,-400.0,0.0002,2]
[359618434,1746185453627,-400.0,0.0002,2]
[359618435,1746185453637,-3425.0,0.0002,2]
[359618436,1746185453647,-400.0,0.0002,2]
[359618437,1746185453658,-6058.19,0.0002,2]
[359618438,1746185453668,-2963.19,0.0002,2]
[359618439,1746185453678,-643.95,0.0002,2]
[359618440,1746185453688,-1423.0,0.0002,2]
[359618441,1746185453698,-487.89,0.0002,2]
[359618442,1746185453709,-1313.55,0.0002,2]
[359618443,1746185453719,-400.0,0.0002,2]
[359618444,1746185453730,-765.3,0.0002,2]
[359618445,1746185453740,-484.53,0.0002,2]
[359618446,1746185453750,-485.46,0.0002,2]
[359618447,1746185453760,-1964.82,0.0002,2]
[359618448,1746185453770,-3243.68,0.0002,2]
[359618449,1746185453779,-400.0,0.0002,2]
[359618450,1746185453789,-842.14,0.0002,2]
[359618451,1746185453799,-400.0,0.0002,2]
[359618452,1746185453809,-400.0,0.0002,2]
[359618453,1746185453819,-400.0,0.0002,2]
[359618454,1746185453829,-1021.05,0.0002,2]
[359618455,1746185453840,-406.75,0.0002,2]
[359618456,1746185453851,-1593.19,0.0002,2]
[359618457,1746185453861,-400.0,0.0002,2]
[359618458,1746185453870,-750.38,0.0002,2]
[359618459,1746185453880,-645.7,0.0002,2]
[359618460,1746185453890,-400.0,0.0002,2]
[359618461,1746185453900,-400.0,0.0002,2]
[359618462,1746185453909,-1063.72,0.0002,2]
[359618463,1746185453919,-899.32,0.0002,2]
[359618464,1746185453929,-2639.3,0.0002,2]
[359618465,1746185453940,-400.0,0.0002,2]
[359618466,1746185453950,-400.0,0.0002,2]
[359618467,1746185453961,-569.55,0.0002,2]
[359618468,1746185453971,-558.7,0.0002,2]
[359618469,1746185453982,-2594.36,0.0002,2]
[359618470,1746185453992,-342.15103376,0.0002,2]
[359618471,1746185454002,-433.72,0.0002,2]
[359618472,1746185454012,-400.0,0.0002,2]
[359618473,1746185454022,-400.0,0.0002,2]
[359618474,1746185454032,-400.0,0.0002,2]
[359618475,1746185454042,-400.0,0.0002,2]
[359618476,1746185454052,-400.0,0.0002,2]
[359618477,1746185454063,-2628.26,0.0002,2]
[359618478,1746185454074,-8714.29,0.0002,2]
[359618479,1746185454085,-480.3,0.0002,2]
[359618480,1746185454095,-985.69,0.0002,2]
[359618481,1746185454105,-268.15013796,0.0002,2]
[359618482,1746185454115,-434.76,0.0002,2]
[359618483,1746185454125,-400.0,0.0002,2]
[359618484,1746185454135,-1331.82,0.0002,2]
[359618485,1746185454145,-1859.75,0.0002,2]
[359618486,1746185454156,-1074.08,0.0002,2]
[359618487,1746185454166,-400.0,0.0002,2]
[359618488,1746185454176,-1345.66,0.0002,2]
[359618489,1746185454186,-400.0,0.0002,2]
[359618490,1746185454197,-500.0,0.0002,2]
[359618491,1746185454208,-400.0,0.0002,2]
[359618492,1746185454219,-3197.69,0.0002,2]
[359618493,1746185454228,-803.39,0.0002,2]
[359618494,1746185454238,-1072.5,0.0002,2]
[359618495,1746185454248,-665.07,0.0002,2]
[359618496,1746185454258,-311.60691411,0.0002,2]
[359618497,1746185454267,-496.09013989,0.0002,2]
[359618498,1746185454277,-3408.71,0.0002,2]
[359618499,1746185454287,-400.0,0.0002,2]
[359618500,1746185454297,-820.08,0.0002,2]
[359618501,1746185454306,-732.55,0.0002,2]
[359618502,1746185454316,-472.58,0.0002,2]
[359618503,1746185454326,-2446.61,0.0002,2]
[359618504,1746185454336,-2929.98,0.0002,2]
[359618505,1746185454346,-400.0,0.0002,2]
[359618506,1746185454356,-842.6,0.0002,2]
[359618507,1746185454366,-548.8458177,0.0002,2]
[359618508,1746185454376,-3349.54,0.0002,2]
[359618509,1746185454386,-400.0,0.0002,2]
[359618510,1746185454396,-400.0,0.0002,2]
[359618511,1746185454406,-1748.95,0.0002,2]
[359618512,1746185454416,-690.07,0.0002,2]
[359618513,1746185454425,-1928.04,0.0002,2]
[359618514,1746185454435,-418.31453337,0.0002,2]
[359618515,1746185454446,-400.0,0.0002,2]
[359618516,1746185454455,-2000.0,0.0002,4]
[359618517,1746185454465,-198.5017375,0.0002,2]
[359618518,1746185454475,-2082.42,0.0002,2]
[359618519,1746185454488,-400.0,0.0002,2]
[359618520,1746185454499,-160.0,0.0002,3]
[359618521,1746185454509,-706.1,0.0002,2]
[359618522,1746185454519,-495.93,0.0002,2]
[359618523,1746185454529,-1111.57,0.0002,2]
[359618524,1746185454539,-400.0,0.0002,2]
[359618525,1746185454549,-1660.15,0.0002,2]
[359618526,1746185454559,-620.3,0.0002,2]
[359618527,1746185454570,-1795.09,0.0002,2]
[359618528,1746185454579,-200.0,0.0002,2]
[359618529,1746185454589,-2337.77,0.0002,2]
[359618530,1746185454599,-400.0,0.0002,2]
[359618531,1746185454609,-400.0,0.0002,2]
[359618532,1746185454619,-400.0,0.0002,2]
[359618533,1746185454629,-6182.59,0.0002,2]
[359618534,1746185454639,-400.0,0.0002,2]
[359618535,1746185454649,-400.0,0.0002,2]
[359618536,1746185454659,-400.0,0.0002,2]
[359618537,1746185454669,-400.0,0.0002,2]
[359618538,1746185454678,-17175.32,0.0002,2]
[359618539,1746185454689,-200.0,0.0002,2]
[359618540,1746185454699,-400.0,0.0002,2]
[359618541,1746185454709,-707.78,0.0002,2]
[359618542,1746185454719,-891.66,0.0002,2]
[359618543,1746185454730,-706.16,0.0002,2]
[359618544,1746185454741,-400.0,0.0002,2]
[359618545,1746185454751,-1500.0,0.00020068,2]
[359618546,1746185454761,-1680.0,0.00020077,2]
[359618547,1746185454771,-600.0,0.0002016,2]
[359618548,1746185454781,-1824.65,0.00020273,2]
[359618549,1746185454791,-400.0,0.00020273,2]
[359618550,1746185454801,-400.0,0.00020273,2]
[359618551,1746185454811,-400.0,0.00020273,2]
[359618552,1746185454868,-400.0,0.00020273,2]
[359618553,1746185454878,-400.0,0.00020273,2]
[359618554,1746185454888,-450.39111842,0.00020273,2]
[359618555,1746185454898,-1032.79,0.00020273,2]
[359618556,1746185454908,-400.0,0.00020273,2]
[359618557,1746185454917,-400.0,0.00020273,2]
[359618558,1746185454927,-400.0,0.00020273,2]
[359618559,1746185454938,-400.0,0.00020273,2]
[359618560,1746185454947,-601.25,0.00020273,2]
[359618561,1746185454957,-400.0,0.00020273,2]
[359618562,1746185454967,-400.0,0.00020273,2]
[359618563,1746185454978,-400.0,0.00020273,2]
[359618564,1746185454988,-400.0,0.00020273,2]
[359618565,1746185454997,-537.47073568,0.00020273,2]
[359618566,1746185455008,-400.0,0.00020273,2]
[359618567,1746185455018,-428.06,0.00020273,2]
[359618568,1746185455028,-400.0,0.00020273,2]
[359618569,1746185455037,-442.62,0.00020273,2]
[359618570,1746185455047,-400.0,0.00020273,2]
[359618571,1746185455056,-400.0,0.00020273,2]
[359618572,1746185455066,-400.0,0.00020273,2]
[359618573,1746185455075,-400.0,0.00020273,2]
[359618574,1746185455085,-400.0,0.00020273,2]
[359618575,1746185455095,-400.0,0.00020273,2]
[359618576,1746185455105,-400.47,0.00020273,2]
[359618577,1746185455115,-431.64,0.00020273,2]
[359618578,1746185455125,-400.0,0.00020273,2]
[359618579,1746185455135,-400.0,0.00020273,2]
[359618580,1746185455144,-400.0,0.00020273,2]
[359618581,1746185455154,-400.0,0.00020273,2]
[359618582,1746185455164,-539.96036969,0.00020273,2]
[359618583,1746185455173,-400.0,0.00020273,2]
[359618584,1746185455183,-400.0,0.00020273,2]
[359618585,1746185455193,-400.0,0.00020273,2]
[359618586,1746185455203,-400.0,0.00020273,2]
[359618587,1746185455213,-818.16,0.00020273,2]
[359618588,1746185455223,-590.3,0.00020273,2]
[359618589,1746185455233,-400.0,0.00020273,2]
[359618590,1746185455243,-400.0,0.00020273,2]
[359618591,1746185455253,-638.57,0.00020273,2]
[359618592,1746185455263,-400.0,0.00020273,2]
[359618593,1746185455273,-400.0,0.00020273,2]
[359618594,1746185455283,-400.0,0.00020273,2]
[359618595,1746185455292,-400.0,0.00020273,2]
[359618596,1746185455302,-400.0,0.00020273,2]
[359618597,1746185455312,-407.40338384,0.00020273,2]
[359618598,1746185455321,-400.0,0.00020273,2]
[359618599,1746185455331,-461.11,0.00020273,2]
[359618600,1746185455341,-400.0,0.00020273,2]
[359618601,1746185455351,-700.84,0.00020273,2]
[359618602,1746185455361,-1159.3,0.00020273,2]
[359618603,1746185455370,-400.0,0.00020273,2]
[359618604,1746185455379,-1067.69,0.00020273,2]
[359618605,1746185455389,-3446.47,0.00020273,2]
[359618606,1746185455398,-400.0,0.00020273,2]
[359618607,1746185455407,-652.79,0.00020273,2]
[359618608,1746185455417,-400.0,0.00020273,2]
[359618609,1746185455426,-400.0,0.00020273,2]
[359618610,1746185455436,-400.0,0.00020273,2]
[359618611,1746185455446,-673.12,0.00020273,2]
[359618612,1746185455455,-400.0,0.00020273,2]
[359618613,1746185455464,-400.0,0.00020273,2]
[359618614,1746185455474,-214.49530761,0.00020273,2]
[359618615,1746185455489,-400.0,0.00020273,2]
[359618616,1746185455499,-400.0,0.00020273,2]
[359618617,1746185455509,-400.0,0.00020273,2]
[359618618,1746185455519,-522.11731761,0.00020273,2]
[359618619,1746185455529,-400.0,0.00020273,2]
[359618620,1746185455538,-400.0,0.00020273,2]
[359618621,1746185455547,-751.31,0.00020273,2]
[359618622,1746185455557,-400.0,0.00020273,2]
[359618623,1746185455566,-723.63,0.00020273,2]
[359618624,1746185455577,-2313.15,0.00020273,2]
[359618625,1746185455586,-400.0,0.00020273,2]
[359618626,1746185455595,-232.36524955,0.00020273,2]
[359618627,1746185455605,-422.52,0.00020273,2]
[359618628,1746185455615,-816.29,0.00020273,2]
[359618629,1746185455627,-400.0,0.00020273,2]
[359618630,1746185455637,-514.13,0.00020273,2]
[359618631,1746185455647,-308.0832359,0.00020273,2]
[359618632,1746185455657,-400.0,0.00020273,2]
[359618633,1746185455666,-1458.46,0.00020273,2]
[359618634,1746185455676,-400.0,0.00020273,2]
[359618635,1746185455685,-857.49,0.00020273,2]
[359618636,1746185455696,-400.0,0.00020273,2]
[359618637,1746185455706,-400.0,0.00020273,2]
[359618638,1746185455716,-400.0,0.00020273,2]
[359618639,1746185455725,-400.0,0.00020273,2]
[359618640,1746185455736,-421.66,0.00020273,2]
[359618641,1746185455747,-400.0,0.00020273,2]
[359618642,1746185455757,-459.53,0.00020273,2]
[359618643,1746185455767,-400.0,0.00020273,2]
[359618644,1746185455776,-1278.92,0.00020273,2]
[359618645,1746185455786,-400.0,0.00020273,2]
[359618646,1746185455795,-1278.02,0.00020273,2]
[359618647,1746185455805,-400.0,0.00020273,2]
[359618648,1746185455814,-915.5,0.00020273,2]
[359618649,1746185455824,-400.0,0.00020273,2]
[359618650,1746185455833,-377.36500557,0.00020273,2]
[359618651,1746185455842,-400.0,0.00020273,2]
[359618652,1746185455851,-431.04,0.00020273,2]
[359618653,1746185455860,-1355.25,0.00020273,2]
[359618654,1746185455870,-796.73,0.00020273,2]
[359618655,1746185455879,-447.79,0.00020273,2]
[359618656,1746185455889,-623.88,0.00020273,2]
[359618657,1746185455899,-1001.69,0.00020273,2]
[359618658,1746185455908,-400.0,0.00020273,2]
[359618659,1746185455918,-400.0,0.00020273,2]
[359618660,1746185455927,-886.17,0.00020273,2]
[359618661,1746185455937,-400.0,0.00020273,2]
[359618662,1746185455947,-400.0,0.00020273,2]
[359618663,1746185455958,-400.0,0.00020273,2]
[359618664,1746185455967,-400.0,0.00020273,2]
[359618665,1746185455977,-276.43912019,0.00020273,2]
[359618666,1746185455986,-400.0,0.00020273,2]
[359618667,1746185455996,-892.13,0.00020273,2]
[359618668,1746185456005,-400.0,0.00020273,2]
[359618669,1746185456015,-400.0,0.00020273,2]
[359618670,1746185456025,-400.0,0.00020273,2]
[359618671,1746185456035,-408.14,0.00020273,2]
[359618672,1746185456045,-400.0,0.00020273,2]
[359618673,1746185456055,-687.84,0.00020273,2]
[359618674,1746185456065,-400.0,0.00020273,2]
[359618675,1746185456074,-400.0,0.00020273,2]
[359618676,1746185456084,-807.78,0.00020273,2]
[359618677,1746185456094,-400.0,0.00020273,2]
[359618678,1746185456104,-416.73861614,0.00020273,2]
[359618679,1746185456114,-400.0,0.00020273,2]
[359618680,1746185456124,-581.24,0.00020273,2]
[359618681,1746185456134,-623.0,0.00020273,2]
[359618682,1746185456144,-400.0,0.00020273,2]
[359618683,1746185456154,-400.0,0.00020273,2]
[359618684,1746185456164,-533.14,0.00020273,2]
[359618685,1746185456174,-479.3,0.00020273,2]
[359618686,1746185456184,-400.0,0.00020273,2]
[359618687,1746185456194,-400.0,0.00020273,2]
[359618688,1746185456204,-707.11,0.00020273,2]
[359618689,1746185456214,-511.12,0.00020273,2]
[359618690,1746185456224,-2665.12,0.00020273,2]
[359618691,1746185456234,-400.0,0.00020273,2]
[359618692,1746185456244,-433.68,0.00020273,2]
[359618693,1746185456254,-400.0,0.00020273,2]
[359618694,1746185456265,-400.0,0.00020273,2]
[359618695,1746185456274,-1489.41,0.00020273,2]
[359618696,1746185456284,-576.36,0.00020273,2]
[359618697,1746185456293,-400.0,0.00020273,2]
[359618698,1746185456303,-659.2,0.00020273,2]
[359618699,1746185456313,-400.0,0.00020273,2]
[359618700,1746185456323,-400.0,0.00020273,2]
[359618701,1746185456332,-400.0,0.00020273,2]
[359618702,1746185456342,-644.95,0.00020273,2]
[359618703,1746185456351,-400.0,0.00020273,2]
[359618704,1746185456361,-400.0,0.00020273,2]
[359618705,1746185456370,-400.0,0.00020273,2]
[359618706,1746185456380,-626.15,0.00020273,2]
[359618707,1746185456389,-400.0,0.00020273,2]
[359618708,1746185456399,-414.29,0.00020273,2]
[359618709,1746185456410,-735.11,0.00020273,2]
[359618710,1746185456419,-400.0,0.00020273,2]
[359618711,1746185456429,-367.9586003,0.00020273,2]
[359618712,1746185456439,-400.0,0.00020273,2]
[359618713,1746185456449,-400.0,0.00020273,2]
[359618714,1746185456459,-688.83,0.00020273,2]
[359618715,1746185456469,-400.0,0.00020273,2]
[359618716,1746185456481,-400.0,0.00020273,2]
[359618717,1746185456491,-391.78799999,0.00020273,2]
[359618718,1746185456501,-491.41,0.00020273,2]
[359618719,1746185456510,-400.0,0.00020273,2]
[359618720,1746185456520,-204.7468304,0.00020273,2]
[359618721,1746185456530,-400.0,0.00020273,2]
[359618722,1746185456539,-400.0,0.00020273,2]
[359618723,1746185456550,-1523.82396422,0.00020273,2]
[359618724,1746185456761,-507.29117012,0.00019178,2]
[359618725,1746185456771,-400.0,0.00019178,2]
[359618726,1746185456780,-429.27603578,0.00020273,2]
[359618727,1746185456790,-722.49,0.00020273,2]
[359618728,1746185456801,-801.02,0.00020273,2]
[359618729,1746185456810,-1894.3,0.00020273,2]
[359618730,1746185456820,-240.65164076,0.00020273,2]
[359618731,1746185456830,-769.83,0.00020273,2]
[359618732,1746185456840,-736.64,0.00020273,2]
[359618733,1746185456849,-501.73,0.00020273,2]
[359618734,1746185456859,-1879.43,0.00020273,2]
[359618735,1746185456869,-460.12,0.00020273,2]
[359618736,1746185456880,-592.34,0.00020273,2]
[359618737,1746185456889,-400.0,0.00020273,2]
[359618738,1746185456899,-631.14,0.00020273,2]
[359618739,1746185456910,-1112.04,0.00020273,2]
[359618740,1746185456920,-400.0,0.00020273,2]
[359618741,1746185456930,-3248.52,0.00020273,2]
[359618742,1746185456940,-400.0,0.00020273,2]
[359618743,1746185456950,-1247.75,0.00020273,2]
[359618744,1746185456960,-400.0,0.00020273,2]
[359618745,1746185456970,-1902.81,0.00020273,2]
[359618746,1746185456981,-7872.97,0.00020273,2]
[359618747,1746185456991,-881.57,0.00020273,2]
[359618748,1746185457001,-618.88,0.00020273,2]
[359618749,1746185457011,-1505.02,0.00020273,2]
[359618750,1746185457021,-400.0,0.00020273,2]